fUST/lending_fUST_20240110
["ID","MTS","AMOUNT","RATE_DAILY","PERIOD"]
[310960834,1704835973197,-500.0,0.0003589,2]
[310960836,1704835973207,-1088.67,0.0003589,2]
[310960838,1704835973217,-500.0,0.0003589,2]
[310960840,1704835973227,-501.84157681,0.0003589,2]
[310960842,1704835973236,-956.45,0.0003589,2]
[310960844,1704835973246,-500.0,0.0003589,2]
[310960846,1704835973255,-500.0,0.0003589,2]
[310960848,1704835973265,-516.51757613,0.0003589,2]
[310960850,1704835973275,-500.0,0.0003589,2]
[310960852,1704835973284,-502.32816693,0.0003589,2]
[310960854,1704835973293,-500.0,0.0003589,2]
[310960856,1704835973303,-506.88634979,0.0003589,2]
[310960858,1704835973313,-500.0,0.0003589,2]
[310960860,1704835973323,-227.4561411,0.0003589,2]
[310960862,1704835973332,-500.0,0.0003589,2]
[310960864,1704835973346,-500.0,0.0003589,2]
[310960866,1704835973356,-500.0,0.0003589,2]
[310960868,1704835973365,-500.0,0.0003589,2]
[310960870,1704835973374,-500.9652095,0.0003589,2]
[310960872,1704835973385,-500.0,0.0003589,2]
[310960874,1704835973397,-500.0,0.0003589,2]
[310960876,1704835973406,-500.0,0.0003589,2]
[310960877,1704835973416,-671.08,0.0003589,2]
[310960879,1704835973426,-472.46249936,0.0003589,2]
[310960881,1704835973436,-500.0,0.0003589,2]
[310960883,1704835973445,-563.62061951,0.0003589,2]
[310960885,1704835973454,-598.44210115,0.0003589,2]
[310960887,1704835973463,-567.99462303,0.0003589,2]
[310960889,1704835973473,-500.0,0.0003589,2]
[310960891,1704835973482,-500.0,0.0003589,2]
[310960893,1704835973492,-500.0,0.0003589,2]
[310960895,1704835973501,-500.0,0.0003589,2]
[310960897,1704835973510,-500.0,0.0003589,2]
[310960899,1704835973520,-500.0,0.0003589,2]
[310960901,1704835973529,-500.0,0.0003589,2]
[310960903,1704835973539,-500.0,0.0003589,2]
[310960904,1704835973548,-500.55118604,0.0003589,2]
[310960906,1704835973557,-785.55,0.0003589,2]
[310960908,1704835973566,-500.0,0.0003589,2]
[310960910,1704835973576,-500.0,0.0003589,2]
[310960912,1704835973585,-9762.02285107,0.0003589,10]
[310960914,1704835973594,-240.40878936,0.0003589,2]
[310960916,1704835973604,-500.0,0.0003589,2]
[310960918,1704835973613,-500.0,0.0003589,2]
[310960920,1704835973623,-502.3919799,0.0003589,2]
[310960922,1704835973632,-500.0,0.0003589,2]
[310960924,1704835973641,-500.0,0.0003589,2]
[310960926,1704835973654,-500.0,0.0003589,2]
[310960928,1704835973663,-500.0,0.0003589,2]
[310960930,1704835973675,-500.0,0.0003589,2]
[310960932,1704835973684,-504.98246174,0.0003589,2]
[310960934,1704835973693,-500.0,0.0003589,2]
[310960936,1704835973702,-696.16,0.0003589,2]
[310960938,1704835973711,-500.0,0.0003589,2]
[310960940,1704835973721,-544.95,0.0003589,2]
[310960942,1704835973730,-500.0,0.0003589,2]
[310960944,1704835973739,-503.21238465,0.0003589,2]
[310960946,1704835973749,-193.63327634,0.0003589,2]
[310960948,1704835973759,-500.0,0.0003589,2]
[310960950,1704835973768,-500.0,0.0003589,2]
[310960952,1704835973777,-500.0,0.0003589,2]
[310960954,1704835973787,-500.0,0.0003589,2]
[310960956,1704835973796,-1000.0,0.0003589,2]
[310960958,1704835973805,-500.0,0.0003589,2]
[310960959,1704835973815,-500.0,0.0003589,2]
[310960961,1704835973824,-500.0,0.0003589,2]
[310960963,1704835973833,-500.0,0.0003589,2]
[310960965,1704835973842,-657.51,0.0003589,2]
[310960967,1704835973851,-500.0,0.0003589,2]
[310960969,1704835973860,-500.0,0.0003589,2]
[310960971,1704835973869,-1134.7,0.0003589,2]
[310960973,1704835973878,-500.0,0.0003589,2]
[310960975,1704835973886,-500.0,0.0003589,2]
[310960977,1704835973898,-500.0,0.0003589,2]
[310960979,1704835973907,-500.0,0.0003589,2]
[310960981,1704835973916,-500.0,0.0003589,2]
[310960983,1704835973926,-500.0,0.0003589,2]
[310960985,1704835973935,-500.0,0.0003589,2]
[310960987,1704835973943,-500.0,0.0003589,2]
[310960989,1704835973953,-500.0,0.0003589,2]
[310960991,1704835973962,-500.0,0.0003589,2]
[310960992,1704835973971,-369.30655585,0.0003589,2]
[310960994,1704835973980,-500.0,0.0003589,2]
[310960996,1704835973989,-500.0,0.0003589,2]
[310960998,1704835973998,-500.0,0.0003589,2]
[310961000,1704835974007,-500.0,0.0003589,2]
[310961002,1704835974016,-500.0,0.0003589,2]
[310961004,1704835974025,-501.00292591,0.0003589,2]
[310961006,1704835974035,-566.57,0.0003589,2]
[310961008,1704835974044,-500.0,0.0003589,2]
[310961010,1704835974053,-51073.72,0.0003589,2]
[310961012,1704835974062,-500.0,0.0003589,2]
[310961014,1704835974071,-3903.57,0.0003589,2]
[310961016,1704835974080,-500.0,0.0003589,2]
[310961018,1704835974090,-500.0,0.0003589,2]
[310961020,1704835974099,-506.88833069,0.0003589,2]
[310961022,1704835974109,-500.0,0.0003589,2]
[310961024,1704835974118,-500.0,0.0003589,2]
[310961026,1704835974128,-500.0,0.0003589,2]
[310961028,1704835974138,-1305.67,0.0003589,2]
[310961030,1704835974149,-503.99642735,0.0003589,2]
[310961032,1704835974158,-500.0,0.0003589,2]
[310961034,1704835974168,-505.32809536,0.0003589,2]
[310961036,1704835974177,-1906.71,0.0003589,2]
[310961038,1704835974186,-505.88505677,0.0003589,2]
[310961040,1704835974195,-516.92824822,0.0003589,2]
[310961042,1704835974204,-500.0,0.0003589,2]
[310961044,1704835974214,-488.60322616,0.0003589,2]
[310961046,1704835974224,-500.0,0.0003589,2]
[310961048,1704835974233,-500.0,0.0003589,2]
[310961050,1704835974242,-500.0,0.0003589,2]
[310961052,1704835974251,-500.0,0.0003589,2]
[310961053,1704835974260,-500.0,0.0003589,2]
[310961055,1704835974269,-500.0,0.0003589,2]
[310961057,1704835974279,-500.0,0.0003589,2]
[310961059,1704835974288,-550.19,0.0003589,2]
[310961061,1704835974298,-500.0,0.0003589,2]
[310961063,1704835974307,-500.0,0.0003589,2]
[310961065,1704835974318,-500.0,0.0003589,2]
[310961067,1704835974328,-500.0,0.0003589,2]
[310961069,1704835974339,-517.60631347,0.0003589,2]
[310961071,1704835974348,-500.0,0.0003589,5]
[310961073,1704835974357,-530.69978644,0.0003589,2]
[310961075,1704835974367,-500.0,0.0003589,2]
[310961077,1704835974376,-1424.28,0.0003589,2]
[310961079,1704835974386,-500.0,0.0003589,2]
[310961081,1704835974398,-500.0,0.0003589,2]
[310961083,1704835974408,-500.0,0.0003589,2]
[310961085,1704835974418,-500.0,0.0003589,2]
[310961087,1704835974429,-500.0,0.0003589,2]
[310961089,1704835974439,-500.0,0.0003589,2]
[310961091,1704835974449,-3493.81,0.0003589,2]
[310961093,1704835974458,-500.0,0.0003589,2]
[310961095,1704835974467,-635.08238346,0.0003589,2]
[310961097,1704835974476,-500.0,0.0003589,2]
[310961099,1704835974485,-2372.41,0.0003589,2]
[310961100,1704835974495,-1483.48,0.0003589,2]
[310961102,1704835974505,-500.0,0.0003589,2]
[310961104,1704835974515,-804.34,0.0003589,2]
[310961106,1704835974525,-500.0,0.0003589,2]
[310961109,1704835974538,-500.0,0.0003589,2]
[310961111,1704835974549,-500.0,0.0003589,2]
[310961113,1704835974560,-500.0,0.0003589,2]
[310961114,1704835974571,-500.0,0.0003589,2]
[310961116,1704835974582,-500.0,0.0003589,2]
[310961118,1704835974592,-500.0,0.0003589,2]
[310961120,1704835974603,-500.0,0.0003589,2]
[310961122,1704835974613,-500.0,0.0003589,2]
[310961124,1704835974624,-500.0,0.0003589,2]
[310961126,1704835974637,-500.0,0.0003589,2]
[310961127,1704835974657,-500.0,0.0003589,2]
[310961128,1704835974671,-500.0,0.0003589,2]
[310961129,1704835974683,-1615.85,0.0003589,2]
[310961130,1704835974694,-245.43479304,0.0003589,2]
[310961131,1704835974791,-2477.66,0.0003589,2]
[310961132,1704835974802,-500.0,0.0003589,2]
[310961133,1704835974813,-500.0,0.0003589,2]
[310961134,1704835974823,-502.59317857,0.0003589,2]
[310961135,1704835974837,-500.0,0.0003589,2]
[310961136,1704835974849,-500.0,0.0003589,2]
[310961138,1704835974858,-1519.77,0.0003589,2]
[310961140,1704835974868,-500.0,0.0003589,2]
[310961142,1704835974877,-500.0,0.0003589,2]
[310961144,1704835974888,-1883.71,0.0003589,2]
[310961146,1704835974903,-500.0,0.0003589,2]
[310961148,1704835974913,-1292.94,0.0003589,2]
[310961150,1704835974922,-1919.14,0.0003589,2]
[310961152,1704835974932,-500.0,0.0003589,2]
[310961154,1704835974942,-500.0,0.0003589,2]
[310961156,1704835974952,-500.0,0.0003589,2]
[310961158,1704835974961,-500.69611721,0.0003589,2]
[310961160,1704835974971,-204.63089644,0.0003589,2]
[310961162,1704835974981,-500.0,0.0003589,2]
[310961164,1704835974990,-500.0,0.0003589,2]
[310961166,1704835974999,-504.43281686,0.0003589,2]
[310961168,1704835975009,-9000.61,0.0003589,2]
[310961170,1704835975019,-500.0,0.0003589,2]
[310961172,1704835975028,-500.0,0.0003589,2]
[310961173,1704835975038,-6104.64,0.0003589,2]
[310961175,1704835975050,-3982.12,0.0003589,2]
[310961177,1704835975060,-514.33,0.0003589,2]
[310961180,1704835975070,-500.0,0.0003589,2]
[310961181,1704835975080,-500.0,0.0003589,2]
[310961183,1704835975091,-502.96550116,0.0003589,2]
[310961185,1704835975101,-500.0,0.0003589,2]
[310961188,1704835975112,-4429.19,0.0003589,2]
[310961189,1704835975121,-500.0,0.0003589,2]
[310961191,1704835975131,-500.0,0.0003589,2]
[310961193,1704835975142,-501.94083797,0.0003589,2]
[310961195,1704835975158,-500.0,0.0003589,2]
[310961197,1704835975168,-500.0,0.0003589,2]
[310961199,1704835975178,-500.45,0.0003589,2]
[310961201,1704835975188,-500.0,0.0003589,2]
[310961203,1704835975198,-500.0,0.0003589,2]
[310961205,1704835975208,-500.0,0.0003589,2]
[310961207,1704835975217,-708.79,0.0003589,2]
[310961209,1704835975227,-500.0,0.0003589,2]
[310961211,1704835975237,-500.0,0.0003589,2]
[310961213,1704835975247,-500.0,0.0003589,2]
[310961215,1704835975257,-500.0,0.0003589,2]
[310961217,1704835975266,-500.0,0.0003589,2]
[310961219,1704835975275,-500.0,0.0003589,2]
[310961221,1704835975284,-500.0,0.0003589,2]
[310961223,1704835975293,-500.0,0.0003589,2]
[310961224,1704835975302,-500.0,0.0003589,2]
[310961226,1704835975312,-527.37573656,0.0003589,2]
[310961228,1704835975321,-500.0,0.0003589,2]
[310961230,1704835975330,-303.78797855,0.0003589,2]
[310961232,1704835975343,-565.4,0.0003589,2]
[310961234,1704835975352,-500.0,0.0003589,2]
[310961236,1704835975361,-500.0,0.0003589,2]
[310961238,1704835975371,-613.23157013,0.0003589,2]
[310961240,1704835975382,-503.6912404,0.0003589,2]
[310961242,1704835975392,-550.68178746,0.0003589,2]
[310961244,1704835975405,-500.0,0.0003589,2]
[310961245,1704835975414,-633.37,0.0003589,2]
[310961247,1704835975425,-500.0,0.0003589,2]
[310961249,1704835975434,-500.0,0.0003589,2]
[310961251,1704835975443,-600.23,0.0003589,2]
[310961253,1704835975453,-504.28366915,0.0003589,2]
[310961255,1704835975461,-500.0,0.0003589,2]
[310961257,1704835975471,-2833.53,0.0003589,2]
[310961258,1704835975480,-6250.07,0.0003589,2]
[310961259,1704835975489,-562.49,0.0003589,2]
[310961260,1704835975499,-500.0,0.0003589,2]
[310961261,1704835975508,-500.0,0.0003589,2]
[310961262,1704835975517,-500.0,0.0003589,2]
[310961263,1704835975527,-500.0,0.0003589,2]
[310961264,1704835975536,-518.02,0.0003589,2]
[310961265,1704835975545,-500.0,0.0003589,2]
[310961266,1704835975554,-500.0,0.0003589,2]
[310961267,1704835975563,-1000.0,0.0003589,2]
[310961268,1704835975572,-500.0,0.0003589,2]
[310961269,1704835975581,-500.0,0.0003589,2]
[310961270,1704835975590,-1442.71,0.0003589,2]
[310961271,1704835975599,-500.0,0.0003589,2]
[310961272,1704835975608,-500.0,0.0003589,2]
[310961273,1704835975617,-514.91833875,0.0003589,2]
[310961274,1704835975626,-500.0,0.0003589,2]
[310961275,1704835975636,-500.0,0.0003589,2]
[310961276,1704835975648,-500.0,0.0003589,2]
[310961277,1704835975657,-500.0,0.0003589,2]
[310961278,1704835975668,-2071.81,0.0003589,2]
[310961279,1704835975677,-12588.07,0.0003589,2]
[310961280,1704835975687,-500.0,0.0003589,2]
[310961281,1704835975696,-532.93123084,0.0003589,2]
[310961282,1704835975705,-500.0,0.0003589,2]
[310961283,1704835975714,-1878.72,0.0003589,2]
[310961284,1704835975723,-500.0,0.0003589,2]
[310961285,1704835975733,-2190.586159,0.0003589,2]
[310961286,1704835975742,-2190.586159,0.0003589,2]
[310961287,1704835975751,-2190.586159,0.0003589,2]
[310961288,1704835975760,-2190.58616095,0.0003589,2]
[310961289,1704835975769,-594.34084,0.0003589,2]
[310961290,1704835975778,-594.34084,0.0003589,2]
[310961291,1704835975787,-594.34084,0.0003589,2]
[310961292,1704835975796,-594.340837,0.0003589,2]
[310961293,1704835975804,-500.0,0.00035908,2]
[310961294,1704835975814,-1000.0,0.00035938,2]
[310961295,1704835975823,-1000.0,0.00035963,2]
[310961296,1704835975832,-231.8455,0.00035983,2]
[310961297,1704835975841,-152.3890024,0.00035989,7]
[310961298,1704835975850,-20739.27799172,0.00035998,2]
[310961299,1704835975862,-230.25509034,0.00036,4]
[310961300,1704835975871,-534.30256127,0.00036,30]
[310961301,1704835975880,-2291.0,0.00036,10]
[310961303,1704835975889,-955.0,0.00036,7]
[310961304,1704835975902,-500.0,0.00036,7]
[310961305,1704835975912,-1000.0,0.00036005,2]
[310961306,1704835975920,-1000.0,0.00036017,2]
[310961308,1704835975930,-160.0,0.00036051,4]
[310961310,1704835975939,-163.305352,0.000361,2]
[310961312,1704835975949,-250.498226,0.000361,15]
[310961315,1704835975959,-1500.0,0.000361,2]
[310961317,1704835975968,-1000.0,0.00036107,2]
[310961319,1704835975978,-1000.0,0.00036155,2]
[310961320,1704835975987,-154.41457915,0.00036163,7]
[310961322,1704835975996,-475.49395368,0.00036164,2]
[310961324,1704835976006,-548.35574145,0.00036164,2]
[310961326,1704835976015,-500.0,0.00036164,2]
[310961328,1704835976025,-500.0,0.00036164,2]
[310961330,1704835976035,-500.0,0.00036164,2]
[310961332,1704835976044,-484.88564107,0.00036164,2]
[310961334,1704835976054,-500.0,0.00036164,2]
[310961336,1704835976063,-500.0,0.00036164,2]
[310961338,1704835976073,-500.0,0.00036164,2]
[310961340,1704835976082,-500.0,0.00036164,2]
[310961342,1704835976091,-500.0,0.00036164,2]
[310961344,1704835976101,-500.0,0.00036164,2]
[310961346,1704835976110,-500.0,0.00036164,2]
[310961348,1704835976120,-500.0,0.00036164,2]
[310961350,1704835976129,-500.0,0.00036164,2]
[310961352,1704835976138,-176.84588182,0.00036164,2]
[310961354,1704835976151,-2447.65,0.00036164,2]
[310961356,1704835976162,-500.0,0.00036164,2]
[310961358,1704835976171,-500.0,0.00036164,2]
[310961360,1704835976180,-504.17246542,0.00036164,2]
[310961361,1704835976190,-500.0,0.00036164,2]
[310961363,1704835976199,-500.0,0.00036164,2]
[310961365,1704835976209,-500.0,0.00036164,2]
[310961367,1704835976219,-600.0,0.00036164,2]
[310961369,1704835976228,-500.0,0.00036164,2]
[310961371,1704835976237,-500.0,0.00036164,2]
[310961373,1704835976247,-500.0039697,0.00036164,2]
[310961375,1704835976256,-500.0,0.00036164,2]
[310961377,1704835976266,-500.0,0.00036164,2]
[310961379,1704835976275,-500.0,0.00036164,2]
[310961381,1704835976283,-500.0,0.00036164,2]
[310961383,1704835976292,-500.0,0.00036164,2]
[310961385,1704835976302,-500.0,0.00036164,2]
[310961387,1704835976311,-517.48025698,0.00036164,2]
[310961389,1704835976320,-622.28,0.00036164,2]
[310961391,1704835976330,-668.58,0.00036164,2]
[310961393,1704835976341,-500.0,0.00036164,2]
[310961402,1704835976427,-500.0,0.00036164,2]
[310961404,1704835976437,-1088.67,0.00036164,2]
[310961406,1704835976446,-500.0,0.00036164,2]
[310961408,1704835976456,-956.45,0.00036164,2]
[310961410,1704835976465,-500.0,0.00036164,2]
[310961412,1704835976474,-500.0,0.00036164,2]
[310961414,1704835976484,-500.0,0.00036164,2]
[310961416,1704835976493,-500.0,0.00036164,2]
[310961418,1704835976502,-500.0,0.00036164,2]
[310961420,1704835976512,-500.0,0.00036164,2]
[310961422,1704835976521,-182.06893875,0.00036164,2]
[310961424,1704835976530,-500.0,0.00036164,2]
[310961426,1704835976539,-500.78632076,0.00036164,2]
[310961428,1704835976548,-500.79142979,0.00036164,2]
[310961430,1704835976558,-500.0,0.00036164,2]
[310961432,1704835976567,-671.08,0.00036164,2]
[310961434,1704835976576,-532.42179893,0.00036164,2]
[310961436,1704835976586,-602.35960015,0.00036164,2]
[310961438,1704835976595,-466.66908188,0.00036164,2]
[310961440,1704835976604,-500.0,0.00036164,2]
[310961442,1704835976614,-500.0,0.00036164,2]
[310961444,1704835976623,-500.0,0.00036164,2]
[310961446,1704835976632,-626.10530072,0.00036164,2]
[310961448,1704835976641,-578.75542968,0.00036164,2]
[310961449,1704835976655,-500.0,0.00036164,2]
[310961451,1704835976664,-785.55,0.00036164,2]
[310961453,1704835976674,-500.0,0.00036164,2]
[310961455,1704835976683,-523.96387343,0.00036164,2]
[310961457,1704835976693,-500.0,0.00036164,2]
[310961459,1704835976702,-500.0,0.00036164,2]
[310961461,1704835976711,-500.0,0.00036164,2]
[310961463,1704835976720,-500.0,0.00036164,2]
[310961465,1704835976730,-433.66898738,0.00036164,2]
[310961467,1704835976739,-500.0,0.00036164,2]
[310961469,1704835976750,-500.0,0.00036164,2]
[310961471,1704835976759,-312.38412643,0.00036164,2]
[310961473,1704835976768,-696.16,0.00036164,2]
[310961474,1704835976777,-500.0,0.00036164,2]
[310961475,1704835976786,-544.95,0.00036164,2]
[310961476,1704835976795,-500.0,0.00036164,2]
[310961477,1704835976804,-500.0,0.00036164,2]
[310961479,1704835976813,-500.0,0.00036164,2]
[310961481,1704835976823,-500.0,0.00036164,2]
[310961483,1704835976832,-500.0,0.00036164,2]
[310961485,1704835976842,-504.62093577,0.00036164,2]
[310961487,1704835976853,-500.0,0.00036164,2]
[310961489,1704835976862,-500.0,0.00036164,2]
[310961491,1704835976871,-513.82641678,0.00036164,2]
[310961493,1704835976880,-500.0,0.00036164,2]
[310961495,1704835976889,-657.51,0.00036164,2]
[310961497,1704835976900,-500.0,0.00036164,2]
[310961499,1704835976910,-602.86210196,0.00036164,2]
[310961501,1704835976919,-1134.7,0.00036164,2]
[310961503,1704835976929,-530.81502069,0.00036164,2]
[310961505,1704835976938,-500.0,0.00036164,2]
[310961507,1704835976947,-500.0,0.00036164,2]
[310961509,1704835976956,-522.35965468,0.00036164,2]
[310961511,1704835976966,-154.50041737,0.00036164,2]
[310961513,1704835976975,-500.0,0.00036164,2]
[310961515,1704835976984,-500.0,0.00036164,2]
[310961517,1704835976993,-530.67654654,0.00036164,2]
[310961519,1704835977002,-500.0,0.00036164,2]
[310961520,1704835977011,-500.0,0.00036164,2]
[310961521,1704835977020,-535.05600543,0.00036164,2]
[310961522,1704835977029,-500.0,0.00036164,2]
[310961523,1704835977038,-500.0,0.00036164,2]
[310961524,1704835977047,-500.0,0.00036164,2]
[310961525,1704835977056,-500.0,0.00036164,2]
[310961526,1704835977066,-566.57,0.00036164,2]
[310961527,1704835977076,-500.0,0.00036164,2]
[310961529,1704835977085,-51073.72,0.00036164,2]
[310961531,1704835977094,-500.0,0.00036164,2]
[310961532,1704835977104,-500.0,0.00036164,2]
[310961534,1704835977113,-3903.57,0.00036164,2]
[310961536,1704835977122,-500.0,0.00036164,2]
[310961538,1704835977131,-500.0,0.00036164,2]
[310961540,1704835977141,-500.0,0.00036164,2]
[310961542,1704835977152,-500.0,0.00036164,2]
[310961544,1704835977162,-1305.67,0.00036164,2]
[310961546,1704835977172,-500.0,0.00036164,2]
[310961548,1704835977182,-1906.71,0.00036164,2]
[310961550,1704835977192,-500.0,0.00036164,2]
[310961552,1704835977201,-500.0,0.00036164,2]
[310961554,1704835977211,-540.34902769,0.00036164,2]
[310961556,1704835977221,-500.0,0.00036164,2]
[310961558,1704835977230,-500.0,0.00036164,2]
[310961559,1704835977241,-500.0,0.00036164,2]
[310961561,1704835977251,-500.0,0.00036164,2]
[310961563,1704835977261,-550.19,0.00036164,2]
[310961565,1704835977271,-500.0,0.00036164,2]
[310961567,1704835977281,-500.0,0.00036164,2]
[310961569,1704835977290,-503.7768482,0.00036164,2]
[310961571,1704835977300,-500.0,0.00036164,2]
[310961573,1704835977309,-500.0,0.00036164,5]
[310961575,1704835977318,-500.0,0.00036164,2]
[310961577,1704835977328,-1424.28,0.00036164,2]
[310961579,1704835977338,-506.7169621,0.00036164,2]
[310961581,1704835977353,-500.0,0.00036164,2]
[310961583,1704835977363,-500.0,0.00036164,2]
[310961585,1704835977373,-500.0,0.00036164,2]
[310961587,1704835977383,-500.0,0.00036164,2]
[310961589,1704835977393,-500.0,0.00036164,2]
[310961590,1704835977406,-3493.81,0.00036164,2]
[310961592,1704835977416,-500.0,0.00036164,2]
[310961594,1704835977425,-500.0,0.00036164,2]
[310961596,1704835977434,-2372.41,0.00036164,2]
[310961598,1704835977444,-1483.48,0.00036164,2]
[310961600,1704835977453,-500.0,0.00036164,2]
[310961602,1704835977463,-804.34,0.00036164,2]
[310961604,1704835977473,-500.0,0.00036164,2]
[310961606,1704835977482,-500.0,0.00036164,2]
[310961608,1704835977491,-500.0,0.00036164,2]
[310961610,1704835977501,-500.0,0.00036164,2]
[310961612,1704835977511,-500.0,0.00036164,2]
[310961614,1704835977520,-286.75818751,0.00036164,2]
[310961616,1704835977530,-500.0,0.00036164,2]
[310961618,1704835977539,-500.0,0.00036164,2]
[310961620,1704835977549,-500.0,0.00036164,2]
[310961621,1704835977559,-500.0,0.00036164,2]
[310961623,1704835977568,-503.80503985,0.00036164,2]
[310961625,1704835977579,-500.0,0.00036164,2]
[310961627,1704835977588,-500.0,0.00036164,2]
[310961629,1704835977598,-1615.85,0.00036164,2]
[310961631,1704835977607,-2477.66,0.00036164,2]
[310961633,1704835977617,-500.0,0.00036164,2]
[310961635,1704835977626,-500.0,0.00036164,2]
[310961637,1704835977635,-500.0,0.00036164,2]
[310961639,1704835977644,-500.0,0.00036164,2]
[310961641,1704835977657,-1519.77,0.00036164,2]
[310961643,1704835977666,-462.58873019,0.00036164,2]
[310961645,1704835977676,-232.48433794,0.00036164,2]
[310961647,1704835977685,-1883.71,0.00036164,2]
[310961649,1704835977694,-1292.94,0.00036164,2]
[310961651,1704835977703,-1919.14,0.00036164,2]
[310961653,1704835977712,-500.0,0.00036164,2]
[310961655,1704835977721,-500.0,0.00036164,2]
[310961657,1704835977730,-500.0,0.00036164,2]
[310961659,1704835977740,-500.0,0.00036164,2]
[310961660,1704835977749,-9000.61,0.00036164,2]
[310961662,1704835977759,-500.0,0.00036164,2]
[310961664,1704835977768,-503.57169132,0.00036164,2]
[310961666,1704835977777,-6104.64,0.00036164,2]
[310961668,1704835977786,-3982.12,0.00036164,2]
[310961670,1704835977796,-514.33,0.00036164,2]
[310961672,1704835977806,-500.0,0.00036164,2]
[310961674,1704835977824,-500.0,0.00036164,2]
[310961683,1704835977901,-4429.19,0.00036164,2]
[310961684,1704835977917,-500.0,0.00036164,2]
[310961686,1704835977929,-500.0,0.00036164,2]
[310961688,1704835977938,-500.0,0.00036164,2]
[310961690,1704835977952,-500.0,0.00036164,2]
[310961692,1704835977963,-500.45,0.00036164,2]
[310961694,1704835977973,-500.0,0.00036164,2]
[310961696,1704835977984,-502.03444066,0.00036164,2]
[310961698,1704835977993,-500.0,0.00036164,2]
[310961700,1704835978003,-708.79,0.00036164,2]
[310961702,1704835978014,-500.0,0.00036164,2]
[310961705,1704835978024,-515.02051243,0.00036164,2]
[310961707,1704835978036,-500.0,0.00036164,2]
[310961709,1704835978046,-500.0,0.00036164,2]
[310961710,1704835978056,-500.0,0.00036164,2]
[310961712,1704835978066,-500.0,0.00036164,2]
[310961714,1704835978076,-500.0,0.00036164,2]
[310961716,1704835978086,-500.0,0.00036164,2]
[310961718,1704835978096,-500.0,0.00036164,2]
[310961720,1704835978106,-500.0,0.00036164,2]
[310961722,1704835978115,-565.4,0.00036164,2]
[310961724,1704835978125,-500.0,0.00036164,2]
[310961726,1704835978135,-500.0,0.00036164,2]
[310961728,1704835978145,-500.0,0.00036164,2]
[310961730,1704835978156,-633.37,0.00036164,2]
[310961732,1704835978166,-215.42859924,0.00036164,2]
[310961734,1704835978176,-500.0,0.00036164,2]
[310961736,1704835978185,-600.23,0.00036164,2]
[310961738,1704835978195,-500.0,0.00036164,2]
[310961740,1704835978206,-2833.53,0.00036164,2]
[310961742,1704835978215,-6250.07,0.00036164,2]
[310961744,1704835978225,-562.49,0.00036164,2]
[310961746,1704835978235,-267.30766703,0.00036164,2]
[310961748,1704835978244,-567.32387945,0.00036164,2]
[310961750,1704835978254,-500.0,0.00036164,2]
[310961752,1704835978264,-518.02,0.00036164,2]
[310961754,1704835978273,-362.47033602,0.00036164,2]
[310961756,1704835978282,-501.10069018,0.00036164,2]
[310961758,1704835978291,-1000.0,0.00036164,2]
[310961760,1704835978301,-604.64057332,0.00036164,2]